bitfinex-derivatives/quotes_BTCF0:USTF0_20250724
["timestamp","ask_amount","ask_price","bid_price","bid_amount"]
[1753396066444,1.66945499,118510.0,118500.0,2.09511]
[1753396066833,1.06697499,118510.0,118500.0,2.092]
[1753396067038,1.66433499,118510.0,118500.0,2.092]
[1753396067238,1.70966884,118510.0,118500.0,2.092]
[1753396067949,1.11230884,118510.0,118500.0,2.092]
[1753396068141,1.70946884,118510.0,118500.0,2.092]
[1753396069148,1.70898884,118510.0,118500.0,2.092]
[1753396080355,1.70898884,118510.0,118500.0,2.09511]
[1753396080553,1.70898884,118510.0,118500.0,2.092]
[1753396081146,1.70898884,118510.0,118500.0,2.09511]
[1753396084156,1.66365499,118510.0,118500.0,2.09511]
[1753396086559,1.66365499,118510.0,118500.0,2.092]
[1753396087257,1.72405781,118510.0,118500.0,2.092]
[1753396087557,1.72405781,118510.0,118500.0,2.09511]
[1753396090155,2.19873066,118510.0,118500.0,1.79573047]
[1753396090347,1.91680761,118510.0,118500.0,0.79265916]
[1753396090552,1.91680761,118510.0,118500.0,0.61291276]
[1753396090750,1.91680761,118510.0,118500.0,0.41916316]
[1753396090950,1.91680761,118510.0,118500.0,0.30801896]
[1753396091255,2.26990158,118510.0,118500.0,0.02149296]
[1753396091455,2.26990158,118510.0,118500.0,6e-08]
[1753396091862,0.92681342,118500.0,118490.0,0.00088493]
[1753396092054,1.36728684,118500.0,118490.0,0.00088493]
[1753396092354,1.49318358,118500.0,118490.0,0.00088493]
[1753396092861,1.49918358,118500.0,118490.0,0.00088493]
[1753396093063,1.50018358,118500.0,118490.0,0.00088493]
[1753396093260,1.14740758,118500.0,118490.0,0.00088493]
[1753396093861,1.74180758,118500.0,118490.0,0.00088493]
[1753396094458,1.14740758,118500.0,118490.0,0.00088493]
[1753396094761,1.74180758,118500.0,118490.0,0.00088493]
[1753396095262,1.14740758,118500.0,118490.0,0.00088493]
[1753396095563,1.68124542,118500.0,118490.0,0.00736493]
[1753396096365,1.68124542,118500.0,118490.0,0.00337493]
[1753396096665,1.68124542,118500.0,118490.0,0.00088493]
[1753396097468,1.72663366,118500.0,118490.0,0.00088493]
[1753396100567,1.74180758,118500.0,118490.0,0.00088493]
[1753396104267,1.68124542,118500.0,118490.0,0.00088493]
[1753396104472,0.57405162,118490.0,118480.0,0.007224]
[1753396104672,0.95396288,118490.0,118480.0,0.007224]
[1753396104871,1.08076655,118490.0,118480.0,0.007224]
[1753396105073,1.14132871,118490.0,118480.0,0.007224]
[1753396105666,1.14232871,118490.0,118480.0,0.007224]
[1753396107177,1.40937979,118490.0,118480.0,0.007224]
[1753396107372,0.2165691,118470.0,118460.0,0.00648]
[1753396107580,1.54835138,118470.0,118460.0,0.00648]
[1753396107877,1.6751533,118470.0,118460.0,0.00648]
[1753396108576,1.6761533,118470.0,118460.0,0.00648]
[1753396108978,1.6781533,118470.0,118460.0,0.00648]
[1753396110272,3.1781533,118470.0,118460.0,0.00648]
[1753396111079,3.18641202,118470.0,118460.0,0.00648]
[1753396111775,2.543291,118470.0,118460.0,0.00648]
[1753396113279,2.82553202,118470.0,118460.0,0.00648]
[1753396114784,3.18633202,118470.0,118460.0,0.00648]
[1753396115583,3.18633202,118470.0,118460.0,0.01718]
[1753396116185,1.68633202,118470.0,118460.0,0.01718]
[1753396117686,1.68629202,118470.0,118460.0,0.01718]
[1753396118576,0.449011,118470.0,118460.0,0.1926134]
[1753396118781,0.95107228,118470.0,118460.0,0.47485442]
[1753396119289,1.01822228,118470.0,118460.0,0.1926134]
[1753396119489,1.04448228,118470.0,118460.0,0.1926134]
[1753396121893,1.04440228,118470.0,118460.0,0.1926134]
[1753396125895,0.45024228,118470.0,118460.0,0.1926134]
[1753396126087,1.04432228,118470.0,118460.0,0.1926134]
[1753396127494,1.04432228,118470.0,118460.0,0.5534134]
[1753396127896,0.76695318,118470.0,118460.0,0.83565442]
[1753396128095,0.93568248,118470.0,118460.0,1.00447842]
[1753396128298,0.93568248,118470.0,118460.0,0.83565442]
[1753396128593,0.93568248,118470.0,118460.0,1.00447842]
[1753396128790,0.14891318,118470.0,118460.0,1.00447842]
[1753396129194,0.31764248,118470.0,118460.0,1.00447842]
[1753396130798,0.31764248,118470.0,118460.0,1.01301122]
[1753396131004,0.34547248,118470.0,118460.0,1.01301122]
[1753396131300,0.34547248,118470.0,118460.0,1.00447842]
[1753396132104,0.17674318,118470.0,118460.0,1.00447842]
[1753396133605,0.17674318,118470.0,118460.0,0.83565442]
[1753396133806,0.17674318,118470.0,118460.0,1.00447842]
[1753396134109,0.17674318,118470.0,118460.0,1.01281604]
[1753396134609,0.17674318,118470.0,118460.0,0.84399204]
[1753396141107,0.17674318,118470.0,118460.0,0.98498426]
[1753396145506,0.17814087,118470.0,118460.0,0.98498426]
[1753396146306,0.15763192,118470.0,118460.0,0.98498426]
[1753396146506,0.17814044,118470.0,118460.0,0.98498426]
[1753396147917,0.17814044,118470.0,118460.0,0.97664664]
[1753396148208,0.17814044,118470.0,118460.0,0.97676301]
[1753396148613,0.17814044,118470.0,118460.0,0.55352977]
[1753396148910,0.17814044,118470.0,118460.0,0.97676301]
[1753396149315,0.17814044,118470.0,118460.0,0.98539652]
[1753396152213,0.17814044,118470.0,118460.0,0.97676301]
[1753396152912,0.17814044,118470.0,118460.0,0.98519439]
[1753396158020,0.15031044,118470.0,118460.0,0.98519439]
[1753396158421,0.17767044,118470.0,118460.0,0.98519439]
[1753396160515,0.17767044,118470.0,118460.0,0.56196115]
[1753396160720,0.17767044,118470.0,118460.0,0.98519439]
[1753396163516,0.11381,118500.0,118490.0,0.04471]
[1753396163721,0.11761193,118500.0,118490.0,0.2470405]
[1753396164021,0.12732909,118500.0,118490.0,1.03107374]
[1753396164622,0.15967909,118500.0,118490.0,1.03107374]
[1753396164922,0.16067909,118500.0,118490.0,0.81945712]
[1753396165123,0.18808909,118500.0,118490.0,0.81945712]
[1753396165424,0.21544909,118500.0,118490.0,0.81945712]
[1753396165930,0.23145909,118500.0,118490.0,0.81945712]
[1753396166122,0.27549909,118500.0,118490.0,0.81945712]
[1753396168022,0.13432909,118500.0,118490.0,1.03107374]
[1753396169227,0.13432909,118500.0,118490.0,0.88983871]
[1753396175428,0.15467204,118500.0,118490.0,0.88983871]
[1753396178132,0.18203204,118500.0,118490.0,0.88983871]
[1753396178329,0.15467204,118500.0,118490.0,0.88983871]
[1753396178530,0.13432909,118500.0,118490.0,0.88983871]
[1753396181028,0.21452372,118520.0,118510.0,0.1862821]
[1753396181335,0.21606874,118520.0,118510.0,1.48603031]
[1753396181534,0.19573781,118520.0,118510.0,1.48603031]
[1753396182035,0.25893781,118520.0,118510.0,1.48603031]
[1753396182335,0.21409409,118520.0,118510.0,1.84683031]
[1753396182928,0.15619409,118520.0,118510.0,1.85533419]
[1753396183129,0.16019409,118520.0,118510.0,1.85633419]
[1753396184433,0.16019409,118520.0,118510.0,1.84783031]
[1753396187144,0.16019409,118520.0,118510.0,1.85627839]
[1753396188843,0.13270409,118520.0,118510.0,1.85627839]
[1753396189236,0.13270409,118520.0,118510.0,1.99709892]
[1753396192541,0.13260409,118520.0,118510.0,1.99709892]
[1753396193437,0.15292278,118520.0,118510.0,1.99709892]
[1753396193840,0.15292278,118520.0,118510.0,2.20850829]
[1753396194044,0.13260409,118520.0,118510.0,1.99709892]
[1753396196544,0.0632,118540.0,118530.0,0.2250241]
[1753396196745,0.08352062,118540.0,118530.0,1.62680284]
[1753396197041,0.2098602,118540.0,118530.0,1.62680284]
[1753396197243,0.2098602,118540.0,118530.0,1.98760284]
[1753396197842,0.2420502,118540.0,118530.0,1.98960284]
[1753396198344,0.2583402,118540.0,118530.0,1.98960284]
[1753396198648,0.2836202,118540.0,118530.0,1.98960284]
[1753396199150,0.3021502,118540.0,118530.0,1.98960284]
[1753396203641,0.3021502,118540.0,118530.0,1.39708284]
[1753396203842,0.3021502,118540.0,118530.0,1.98948284]
[1753396204747,0.3021502,118540.0,118530.0,0.79923347]
[1753396204748,0.68218947,118540.0,118530.0,0.79923347]
[1753396204942,0.68218947,118540.0,118530.0,0.1706441]
[1753396205251,0.68218947,118540.0,118530.0,0.38205347]
[1753396206849,0.66186885,118540.0,118530.0,0.38205347]
[1753396207049,0.68151611,118540.0,118530.0,0.38205347]
[1753396209255,0.47010674,118540.0,118530.0,0.1706441]
[1753396212451,0.47010674,118540.0,118530.0,0.45253423]
[1753396212653,0.45045948,118540.0,118530.0,0.45253423]
[1753396212839,0.81125948,118540.0,118530.0,0.170644]
[1753396215656,0.87633425,118540.0,118530.0,0.170644]
[1753396217255,0.87633425,118540.0,118530.0,0.002]
[1753396218647,0.83093576,118540.0,118530.0,0.170644]
[1753396220051,0.87633425,118540.0,118530.0,0.170644]
[1753396220259,0.87633425,118540.0,118530.0,0.002]
[1753396221260,0.83093576,118540.0,118530.0,0.002]
[1753396221456,1.15822438,118540.0,118530.0,0.002]
[1753396221655,1.11282589,118540.0,118530.0,0.002]
[1753396221953,0.83093576,118540.0,118530.0,0.002]
[1753396222143,1.11282589,118540.0,118530.0,0.002]
[1753396223343,1.15822438,118540.0,118530.0,0.002]
[1753396223957,2.65822438,118540.0,118530.0,0.002]
[1753396224256,2.61282589,118540.0,118530.0,0.002]
[1753396227650,2.33093576,118540.0,118530.0,0.002]
[1753396227952,2.61282589,118540.0,118530.0,0.002]
[1753396228459,2.33093576,118540.0,118530.0,0.002]
[1753396228662,2.61282589,118540.0,118530.0,0.002]
[1753396229158,2.75382174,118540.0,118530.0,0.21344299]
[1753396229357,2.79922023,118540.0,118530.0,0.21344299]
[1753396230554,2.75382174,118540.0,118530.0,0.002]
[1753396230856,2.75382174,118540.0,118530.0,0.21344299]
[1753396231058,2.75382174,118540.0,118530.0,0.002]
[1753396233958,2.39302174,118540.0,118530.0,0.002]
[1753396234564,2.75382174,118540.0,118530.0,0.002]
[1753396235154,2.75382174,118540.0,118530.0,0.21344299]
[1753396235555,2.79922023,118540.0,118530.0,0.21344299]
[1753396235760,1.29922023,118540.0,118530.0,0.21344299]
[1753396238165,1.08777724,118540.0,118530.0,0.21344299]
[1753396238362,1.08821527,118540.0,118530.0,0.21344299]
[1753396239167,1.29965826,118540.0,118530.0,0.21344299]
[1753396240759,0.93885826,118540.0,118530.0,0.21344299]
[1753396241161,0.72741527,118540.0,118530.0,0.21344299]
[1753396242665,1.08821527,118540.0,118530.0,0.21344299]
[1753396242966,1.08821527,118540.0,118530.0,0.002]
[1753396243263,1.29965826,118540.0,118530.0,0.21344299]
[1753396246765,1.29965826,118540.0,118530.0,0.002]
[1753396249569,0.87677228,118540.0,118530.0,0.002]
[1753396249866,1.29965826,118540.0,118530.0,0.002]
[1753396252663,1.29966728,118540.0,118530.0,0.002]
[1753396256669,1.29966728,118540.0,118530.0,0.21344299]
[1753396258662,1.0428258,118540.0,118530.0,0.21344299]
[1753396259270,1.10335713,118540.0,118530.0,0.21344299]
[1753396260073,1.69451713,118540.0,118530.0,0.21344299]
[1753396260673,1.90596012,118540.0,118530.0,0.21344299]
[1753396262276,1.90629082,118540.0,118530.0,0.21344299]
[1753396262678,1.69484783,118540.0,118530.0,0.21344299]
[1753396263580,1.69484783,118540.0,118530.0,0.002]
[1753396263581,1.90629082,118540.0,118530.0,0.002]
[1753396263884,1.90629082,118540.0,118530.0,0.21344299]
[1753396264879,1.89117797,118540.0,118530.0,0.21344299]
[1753396265676,1.89097797,118540.0,118530.0,0.21344299]
[1753396267583,1.46809199,118540.0,118530.0,0.21344299]
[1753396268078,1.89097797,118540.0,118530.0,0.21344299]
[1753396268878,1.89097797,118540.0,118530.0,0.002]
[1753396269079,1.89097797,118540.0,118530.0,0.21344299]
[1753396269273,1.89093797,118540.0,118530.0,0.21344299]
[1753396271083,1.53013797,118540.0,118530.0,0.21344299]
[1753396271881,1.89093797,118540.0,118530.0,0.21344299]
[1753396279396,1.89093797,118540.0,118530.0,0.002]
[1753396279598,1.89093797,118540.0,118530.0,0.21344299]
[1753396280192,1.51146096,118540.0,118510.0,0.37961481]
[1753396280394,0.3054325,118510.0,118500.0,0.05175]
[1753396280595,1.48864952,118510.0,118500.0,0.01793]
[1753396280791,1.61526523,118510.0,118500.0,0.01793]
[1753396281097,0.3054467,118500.0,118490.0,0.24551299]
[1753396281393,1.02460192,118500.0,118490.0,0.24551299]
[1753396282291,1.02460192,118500.0,118490.0,0.01793]
[1753396282292,1.23604491,118500.0,118490.0,0.01793]
[1753396282492,0.66380192,118500.0,118490.0,0.22937299]
[1753396282792,0.66380192,118500.0,118490.0,0.23137299]
[1753396282793,0.66480192,118500.0,118490.0,0.23137299]
[1753396283295,0.66780192,118500.0,118490.0,0.002]
[1753396283495,0.66780192,118500.0,118490.0,0.21344299]
[1753396283691,0.66775869,118500.0,118490.0,0.21344299]
[1753396284888,0.66775869,118500.0,118490.0,0.002]
[1753396285092,0.74513543,118500.0,118490.0,0.21344299]
[1753396285797,0.74512476,118500.0,118490.0,0.21344299]
[1753396287207,0.74512476,118500.0,118490.0,0.38214389]
[1753396288305,0.74512476,118500.0,118490.0,0.21344299]
[1753396290001,0.74512476,118500.0,118490.0,0.002]
[1753396290197,1.31736775,118500.0,118490.0,0.002]
[1753396293700,0.95656775,118500.0,118490.0,0.002]
[1753396297906,0.53368177,118500.0,118490.0,0.26519299]
[1753396298204,0.53368177,118500.0,118490.0,0.45868389]
[1753396298608,0.53368177,118500.0,118490.0,0.81948389]
[1753396306616,0.36499507,118500.0,118490.0,0.81948389]
[1753396306815,0.53368177,118500.0,118490.0,0.81948389]
[1753396307310,0.26146753,118500.0,118490.0,1.03102025]
[1753396307512,0.21992753,118500.0,118490.0,1.03102025]
[1753396308206,0.24551753,118500.0,118490.0,1.03102025]
[1753396308810,0.24551753,118500.0,118490.0,1.03940254]
[1753396314120,0.2251174,118500.0,118490.0,1.03940254]
[1753396317120,0.1995274,118500.0,118490.0,1.03940254]
[1753396319226,0.2251174,118500.0,118490.0,1.03940254]
[1753396319923,0.1995274,118500.0,118490.0,1.03940254]
[1753396320624,0.2251174,118500.0,118490.0,1.03940254]
[1753396322523,0.24577121,118500.0,118490.0,1.03940254]
[1753396325029,0.30150121,118500.0,118490.0,1.03940254]
[1753396325325,0.35862121,118500.0,118490.0,1.03102025]
[1753396336435,0.35862121,118500.0,118490.0,1.61982025]
[1753396337725,0.35862121,118500.0,118490.0,1.03102025]
[1753396338029,0.35862121,118500.0,118490.0,1.61970025]
[1753396338230,0.35862121,118500.0,118490.0,1.03102025]
[1753396338433,0.35862121,118500.0,118490.0,1.61970025]
[1753396341537,0.35862121,118500.0,118490.0,1.61966025]
[1753396342236,0.35862121,118500.0,118490.0,1.03102025]
[1753396342432,0.35862121,118500.0,118490.0,1.61958025]
[1753396345136,0.35862121,118500.0,118490.0,1.03102025]
[1753396345338,0.35862121,118500.0,118490.0,1.19657427]
[1753396345538,0.35862121,118500.0,118490.0,1.40801726]
[1753396345740,0.35862121,118500.0,118490.0,0.81957726]
[1753396345940,0.35862121,118500.0,118490.0,1.40801726]
[1753396348342,0.7387509,118500.0,118490.0,0.60813427]
[1753396348536,0.95019389,118500.0,118490.0,0.17079427]
[1753396348737,1.31099389,118500.0,118490.0,0.00209337]
[1753396352633,0.2232351,118480.0,118470.0,1.07155504]
[1753396352946,0.66328078,118480.0,118470.0,1.07155504]
[1753396353639,0.66328078,118480.0,118470.0,1.08752504]
[1753396353845,0.66428078,118480.0,118470.0,0.53303504]
[1753396354048,0.66528078,118480.0,118470.0,1.12323504]
[1753396354345,0.67368496,118480.0,118470.0,0.81236805]
[1753396354538,0.67368496,118480.0,118470.0,0.79639805]
[1753396354732,0.67368496,118480.0,118470.0,1.00784104]
[1753396354933,0.67368496,118480.0,118470.0,1.02381104]
[1753396355342,0.88512795,118480.0,118470.0,0.004]
[1753396355548,1.24592795,118480.0,118470.0,0.004]
[1753396356440,0.88512795,118480.0,118470.0,0.004]
[1753396356634,1.24592795,118480.0,118470.0,0.004]
[1753396357145,1.10527983,118480.0,118470.0,0.004]
[1753396360852,1.10527983,118480.0,118450.0,0.2880272]
[1753396360853,0.2230936,118460.0,118450.0,0.2880272]
[1753396361148,0.42950539,118460.0,118450.0,0.2720572]
[1753396361850,0.42950539,118460.0,118450.0,0.3029272]
[1753396362251,0.43150539,118460.0,118450.0,0.3089272]
[1753396362444,0.43150539,118460.0,118450.0,0.3245872]
[1753396364253,0.43150539,118460.0,118450.0,0.63087506]
[1753396364451,0.26276179,118460.0,118450.0,0.99167506]
[1753396365754,0.45214011,118460.0,118450.0,0.99167506]
[1753396366852,0.28339651,118460.0,118450.0,0.99167506]
[1753396367249,0.45214011,118460.0,118450.0,0.99167506]
[1753396368152,0.45214011,118460.0,118450.0,0.7094372]
[1753396368352,0.45214011,118460.0,118450.0,0.99167506]
[1753396373562,0.45214011,118460.0,118450.0,0.7094372]
[1753396373755,0.45214011,118460.0,118450.0,0.99167506]
[1753396375563,0.45114011,118460.0,118450.0,0.98567506]
[1753396375762,0.45314011,118460.0,118450.0,0.98667506]
[1753396377265,0.66482557,118460.0,118450.0,0.91612266]
[1753396380367,0.66482557,118460.0,118450.0,1.50368266]
[1753396380771,0.45314011,118460.0,118450.0,1.50368266]
[1753396390776,0.15057651,118460.0,118450.0,1.71536812]
[1753396393084,0.15057651,118460.0,118450.0,1.71530589]
[1753396393684,0.17385651,118460.0,118450.0,1.71530589]
[1753396394273,0.1740974,118460.0,118450.0,1.71530589]
[1753396394988,0.3428429,118460.0,118450.0,1.71530589]
[1753396395182,0.1740974,118460.0,118450.0,1.71530589]
[1753396396774,0.1740974,118460.0,118450.0,1.71529997]
[1753396397177,0.1740974,118460.0,118450.0,1.50361451]
[1753396399289,0.1740974,118460.0,118450.0,1.71529997]
[1753396399989,0.66327836,118460.0,118450.0,0.70436905]
[1753396400188,0.66327836,118460.0,118450.0,1.50297451]
[1753396404591,0.66327836,118460.0,118450.0,1.50281451]
[1753396405190,0.4515929,118460.0,118450.0,1.50281451]
[1753396405587,0.4515929,118460.0,118450.0,1.14201451]
[1753396405894,0.66327836,118460.0,118450.0,1.50281451]
[1753396408498,0.4515929,118460.0,118450.0,1.50281451]
[1753396408798,0.66327836,118460.0,118450.0,1.50281451]
[1753396408999,0.66327836,118460.0,118450.0,0.91605451]
[1753396409298,0.4515929,118460.0,118450.0,1.50265451]
[1753396409494,0.4515929,118460.0,118450.0,0.91605451]
[1753396409691,0.2828474,118460.0,118450.0,1.50265451]
[1753396409892,0.4515929,118460.0,118450.0,1.50265451]
[1753396412499,0.4515929,118460.0,118450.0,0.91605451]
[1753396412900,0.4515929,118460.0,118450.0,1.50253451]
[1753396417004,0.66327836,118460.0,118450.0,1.50253451]
[1753396418709,0.66327836,118460.0,118450.0,0.91605451]
[1753396418907,0.66327836,118460.0,118450.0,1.50241451]
[1753396420605,0.49453286,118460.0,118450.0,1.50241451]
[1753396421005,0.2828474,118460.0,118450.0,1.50241451]
[1753396423111,0.4515929,118460.0,118450.0,1.50241451]
[1753396423614,0.2828474,118460.0,118450.0,1.50241451]
[1753396425309,0.2828474,118460.0,118450.0,0.91605451]
[1753396425513,0.1508174,118460.0,118450.0,2.09438543]
[1753396425715,0.1099174,118460.0,118450.0,2.09438543]
[1753396426013,0.1099174,118460.0,118450.0,1.88269997]
[1753396426213,0.08904179,118460.0,118450.0,1.88269997]
[1753396426617,0.08904179,118460.0,118450.0,1.71385997]
[1753396426812,0.08904179,118460.0,118450.0,2.09438543]
[1753396428118,0.08904179,118460.0,118450.0,1.88269997]
[1753396428416,0.02362,118480.0,118470.0,0.1687312]
[1753396428614,0.04447133,118480.0,118470.0,1.53894212]
[1753396428916,0.17182803,118480.0,118470.0,1.53894212]
[1753396429612,0.17382803,118480.0,118470.0,1.53894212]
[1753396430620,0.17782803,118480.0,118470.0,1.53994212]
[1753396433825,0.45384503,118480.0,118470.0,0.74221666]
[1753396434127,0.28512803,118480.0,118470.0,1.32801666]
[1753396434528,0.66551004,118480.0,118470.0,1.32797666]
[1753396434827,0.66551004,118480.0,118470.0,0.96717666]
[1753396435016,0.49679304,118480.0,118470.0,0.96717666]
[1753396435218,0.49679304,118480.0,118470.0,0.38141666]
[1753396435419,0.49679304,118480.0,118470.0,0.96717666]
[1753396436427,0.28510758,118480.0,118470.0,0.96717666]
[1753396437327,0.49679304,118480.0,118470.0,0.96717666]
[1753396438129,0.28510758,118480.0,118470.0,0.96717666]
[1753396441335,0.49679304,118480.0,118470.0,0.96717666]
[1753396441727,0.66551004,118480.0,118470.0,0.96717666]
[1753396444040,0.28510758,118480.0,118470.0,0.96717666]
[1753396444238,0.49679304,118480.0,118470.0,0.96717666]
[1753396445241,0.28510758,118480.0,118470.0,0.96834666]
[1753396445439,0.28510758,118480.0,118470.0,0.96802666]
[1753396445742,0.49679304,118480.0,118470.0,0.96802666]
[1753396446344,0.66551004,118480.0,118470.0,0.96802666]
[1753396446643,0.66551004,118480.0,118470.0,0.7563412]
[1753396446837,0.66551004,118480.0,118470.0,0.96802666]
[1753396447144,0.49679304,118480.0,118470.0,0.96802666]
[1753396447345,0.66551004,118480.0,118470.0,0.96802666]
[1753396448044,0.66551004,118480.0,118470.0,0.38258666]
[1753396448245,0.8771955,118480.0,118470.0,0.7562612]
[1753396448745,0.8771955,118480.0,118470.0,0.96794666]
[1753396449446,0.66551004,118480.0,118470.0,0.96794666]
[1753396462060,0.66551004,118480.0,118470.0,0.7562612]
[1753396462262,0.66551004,118480.0,118470.0,0.96794666]
[1753396462562,0.66553045,118480.0,118470.0,0.96794666]
[1753396463061,0.66553045,118480.0,118470.0,0.79921546]
[1753396463258,1.02633045,118480.0,118470.0,0.58713]
[1753396463464,1.82293591,118480.0,118470.0,0.79881546]
[1753396463665,1.61125045,118480.0,118470.0,0.79881546]
[1753396463860,1.61125045,118480.0,118470.0,0.96754666]
[1753396465362,1.61125045,118480.0,118470.0,0.38258666]
[1753396466266,1.61125045,118480.0,118470.0,0.1709012]
[1753396466467,1.61125045,118480.0,118470.0,0.38258666]
[1753396467870,1.82293591,118480.0,118470.0,0.38258666]
[1753396468065,1.61125045,118480.0,118470.0,0.00145]
[1753396468262,1.82293591,118480.0,118470.0,0.001]
[1753396470971,1.39956499,118480.0,118470.0,0.001]
[1753396471274,1.82293591,118480.0,118470.0,0.001]
[1753396476378,1.86834911,118480.0,118470.0,0.001]
[1753396476781,0.2999855,118460.0,118450.0,0.01975455]
[1753396476979,0.89332225,118460.0,118450.0,0.23144001]
[1753396477182,1.60386336,118460.0,118450.0,0.18851425]
[1753396477480,1.60386336,118460.0,118450.0,0.40019971]
[1753396477880,1.60486336,118460.0,118450.0,0.40119971]
[1753396478375,1.60486336,118460.0,118450.0,0.40319971]
[1753396478581,1.60586336,118460.0,118450.0,0.40319971]
[1753396479779,1.60586336,118460.0,118450.0,0.40230971]
[1753396480380,1.61438416,118460.0,118450.0,0.40230971]
[1753396482278,1.25358416,118460.0,118450.0,0.40230971]
[1753396482679,1.61438416,118460.0,118450.0,0.40230971]
[1753396485285,1.4026987,118460.0,118450.0,0.40230971]
[1753396485487,1.25342416,118460.0,118450.0,0.76310971]
[1753396485785,1.0417387,118460.0,118450.0,0.76310971]
[1753396490884,0.2569524,118460.0,118450.0,0.97479517]
[1753396491188,0.1726724,118460.0,118450.0,0.97479517]
[1753396496089,0.1726724,118460.0,118450.0,0.55142425]
[1753396496392,0.2071224,118460.0,118450.0,0.97479517]
[1753396496988,0.2375624,118460.0,118450.0,0.97479517]
[1753396497995,0.2591724,118460.0,118450.0,0.97479517]
[1753396499599,0.2807124,118460.0,118450.0,0.97479517]
[1753396504405,0.2807124,118460.0,118450.0,0.97478418]
[1753396504902,0.2807124,118460.0,118450.0,0.95593062]
[1753396505103,0.2807124,118460.0,118450.0,0.97484214]
[1753396505496,0.2807124,118460.0,118450.0,0.55147122]
[1753396505802,0.66114336,118460.0,118450.0,1.34715668]
[1753396505998,0.66114336,118460.0,118450.0,1.32824516]
[1753396506196,0.4494579,118460.0,118450.0,1.32824516]
[1753396506401,0.66114336,118460.0,118450.0,1.32824516]
[1753396506603,0.66114336,118460.0,118450.0,1.34693906]
[1753396506901,0.49239786,118460.0,118450.0,1.34693906]
[1753396507103,0.2807124,118460.0,118450.0,0.76340326]
[1753396507302,0.2807124,118460.0,118450.0,1.34740326]
[1753396508104,0.2807124,118460.0,118450.0,1.34736326]
[1753396508400,0.2807124,118460.0,118450.0,1.32820516]
[1753396508602,0.2807124,118460.0,118450.0,1.34706167]
[1753396509305,0.2807124,118460.0,118450.0,1.32820516]
[1753396509506,0.4494579,118460.0,118450.0,1.34708115]
[1753396509706,0.44927558,118460.0,118450.0,1.34708115]
[1753396510701,0.44927558,118460.0,118450.0,1.34704115]
[1753396511006,0.44927558,118460.0,118450.0,0.76312115]
[1753396511207,0.44927558,118460.0,118450.0,1.34704115]
[1753396511704,0.44927558,118460.0,118450.0,1.32816516]
[1753396511909,0.44927558,118460.0,118450.0,1.34673925]
[1753396512510,0.44927558,118460.0,118450.0,1.34715193]
[1753396513997,0.66096104,118460.0,118450.0,1.34715193]
[1753396514202,0.44927558,118460.0,118450.0,1.34715193]
[1753396515212,0.44927558,118460.0,118450.0,0.76323193]
[1753396515509,0.44927558,118460.0,118450.0,1.34711193]
[1753396515710,0.44927558,118460.0,118450.0,0.76323193]
[1753396516214,0.44927558,118460.0,118450.0,1.34707193]
[1753396516808,0.28053008,118460.0,118450.0,1.34707193]
[1753396519612,0.44927608,118460.0,118450.0,1.34707193]
[1753396524014,0.44927608,118460.0,118450.0,0.76323193]
[1753396530119,0.44927608,118460.0,118450.0,0.74424516]
[1753396530321,0.44927608,118460.0,118450.0,0.76285876]
[1753396533417,0.44927608,118460.0,118450.0,1.34645876]
[1753396534020,0.44927608,118460.0,118450.0,1.34701052]
[1753396534826,0.44927608,118460.0,118450.0,0.98621052]
[1753396535023,0.44927608,118460.0,118450.0,1.34701052]
[1753396535624,0.17249008,118460.0,118450.0,1.34701052]
[1753396535928,0.17224008,118460.0,118450.0,1.55865598]
[1753396539821,0.27941008,118460.0,118450.0,1.34697052]
[1753396540022,0.27941008,118460.0,118450.0,1.55865598]
[1753396540423,0.27941008,118460.0,118450.0,1.34697052]
[1753396540630,0.22406008,118460.0,118450.0,1.55865598]
[1753396540823,0.20224008,118460.0,118450.0,1.55865598]
[1753396541129,0.18592008,118460.0,118450.0,1.55865598]
[1753396544133,0.27802008,118460.0,118450.0,1.55865598]
[1753396545424,0.27800416,118460.0,118450.0,1.55865598]
[1753396545630,0.25714416,118460.0,118450.0,1.55865598]
[1753396547038,0.23649111,118460.0,118450.0,1.55865598]
[1753396547236,0.18027111,118460.0,118450.0,1.55865598]
[1753396550034,0.2009239,118460.0,118450.0,1.55865598]
[1753396551832,0.18027111,118460.0,118450.0,1.55865598]
[1753396552441,0.15157111,118460.0,118450.0,1.55865598]
[1753396554739,0.25810111,118460.0,118450.0,1.55865598]
[1753396561351,0.27851772,118460.0,118450.0,1.55865598]
[1753396567660,0.27851772,118460.0,118450.0,1.13528506]
[1753396567854,0.27851772,118460.0,118450.0,1.55865598]
[1753396568267,0.25810111,118460.0,118450.0,1.55865598]
[1753396569665,0.27852082,118460.0,118450.0,1.55865598]
[1753396572767,0.49020628,118460.0,118450.0,1.34973052]
[1753396573067,0.49020628,118460.0,118450.0,0.40261052]
[1753396573269,0.65895278,118460.0,118450.0,0.40261052]
[1753396574269,0.44726732,118460.0,118450.0,0.40261052]
[1753396574871,1.03330732,118460.0,118450.0,0.40261052]
[1753396576970,1.03322732,118460.0,118450.0,0.40261052]
[1753396577169,1.03318732,118460.0,118450.0,0.40261052]
[1753396577368,0.44726732,118460.0,118450.0,0.40261052]
[1753396577572,1.03310732,118460.0,118450.0,0.40261052]
[1753396578577,1.03298732,118460.0,118450.0,0.40261052]
[1753396578781,1.01256761,118460.0,118450.0,0.40261052]
[1753396578966,0.42684761,118460.0,118450.0,0.40261052]
[1753396579171,1.01256761,118460.0,118450.0,0.40261052]
[1753396579369,1.03297962,118460.0,118450.0,0.40261052]
[1753396579765,0.44725962,118460.0,118450.0,0.40261052]
[1753396579968,1.03289962,118460.0,118450.0,0.40261052]
[1753396580876,0.44725962,118460.0,118450.0,0.40261052]
[1753396581176,1.03277962,118460.0,118450.0,0.40261052]
[1753396582072,1.03277962,118460.0,118450.0,0.19092506]
[1753396582267,1.03277962,118460.0,118450.0,0.40261052]
[1753396582978,0.44725962,118460.0,118450.0,0.40261052]
[1753396583180,1.03261962,118460.0,118450.0,0.40261052]
[1753396583479,1.03261962,118460.0,118450.0,0.19092506]
[1753396583777,1.03229962,118460.0,118450.0,0.40261052]
[1753396584676,1.24398508,118460.0,118450.0,0.40261052]
[1753396589981,1.24370508,118460.0,118450.0,0.40261052]
[1753396591781,1.03201962,118460.0,118450.0,0.40261052]
[1753396592080,1.03169962,118460.0,118450.0,0.40261052]
[1753396593290,0.44725962,118460.0,118450.0,0.40261052]
[1753396593583,1.03145962,118460.0,118450.0,0.40261052]
[1753396594278,1.03153962,118460.0,118450.0,0.40261052]
[1753396597186,0.44725962,118460.0,118450.0,0.61429598]
[1753396597485,1.03137962,118460.0,118450.0,0.61429598]
[1753396598582,0.44725962,118460.0,118450.0,0.61429598]
[1753396598977,0.27851312,118460.0,118450.0,0.61429598]
[1753396599182,0.22316312,118460.0,118450.0,0.61429598]
[1753396599582,0.25485312,118460.0,118450.0,0.61429598]
[1753396599781,0.27588312,118460.0,118450.0,0.61429598]
[1753396600585,0.44462972,118460.0,118450.0,0.61429598]